fUSD/lending_fUSD_20260407
["ID","MTS","AMOUNT","RATE_DAILY","PERIOD"]
[419988773,1775587844351,-500.0,0.00013699,2]
[419988775,1775587844361,-500.0,0.00013699,2]
[419988778,1775587844371,-500.0,0.00013699,2]
[419988780,1775587844381,-500.0,0.00013699,2]
[419988782,1775587844391,-500.0,0.00013699,2]
[419988784,1775587844401,-500.0,0.00013699,2]
[419988786,1775587844410,-500.27198937,0.00013699,2]
[419988788,1775587844420,-502.96988739,0.00013699,2]
[419988790,1775587844430,-500.0,0.00013699,2]
[419988792,1775587844440,-500.0,0.00013699,2]
[419988794,1775587844451,-500.0,0.00013699,2]
[419988796,1775587844460,-561.33456625,0.00013699,2]
[419988798,1775587844470,-474.57359568,0.00013699,2]
[419988800,1775587844480,-500.0,0.00013699,2]
[419988802,1775587844490,-101382.65,0.000137,2]
[419988804,1775587844500,-500.0,0.00013722,2]
[419988806,1775587844511,-2964.7618963,0.00013765,2]
[419988808,1775587844521,-255.0,0.00013799,2]
[419988810,1775587844531,-2318.0,0.000138,2]
[419988812,1775587844541,-150.0,0.00013822,2]
[419988814,1775587844551,-300.0,0.00013856,2]
[419988816,1775587844561,-300.0,0.00013856,2]
[419988818,1775587844571,-300.0,0.00013856,2]
[419988820,1775587844581,-300.0,0.00013856,2]
[419988822,1775587844594,-356.43990232,0.00013856,2]
[419988824,1775587844604,-150.0,0.00013856,2]
[419988826,1775587844615,-205.00212077,0.00013856,2]
[419988828,1775587844625,-500.0,0.00013856,2]
[419988830,1775587844636,-500.0,0.00013856,2]
[419988832,1775587844646,-500.0,0.00013856,2]
[419988834,1775587844656,-500.0,0.00013856,2]
[419988836,1775587844666,-500.0,0.00013856,2]
[419988838,1775587844675,-1680.0,0.00013856,2]
[419988840,1775587844684,-2500.0,0.00013857,2]
[419988842,1775587844693,-2500.0,0.00013857,2]
[419988844,1775587844703,-2500.0,0.00013857,2]
[419988846,1775587844713,-2500.0,0.00013857,2]
[419988848,1775587844722,-2500.0,0.00013857,2]
[419988850,1775587844733,-391.29868191,0.00013868,2]
[419988852,1775587844742,-1500.0,0.00013868,2]
[419988854,1775587844753,-1037.33935184,0.00013868,2]
[419988856,1775587844763,-1500.0,0.00013868,2]
[419988858,1775587844773,-1500.0,0.00013868,2]
[419988860,1775587844782,-1500.0,0.00013868,2]
[419988861,1775587844791,-1500.0,0.00013868,2]
[419988862,1775587844801,-1500.0,0.00013868,2]
[419988863,1775587844810,-13000.0,0.000139,5]
[419988864,1775587844820,-150.0,0.00013973,2]
[419988865,1775587844829,-150.0,0.00013973,2]
[419988867,1775587844838,-150.0,0.00013973,2]
[419988869,1775587844848,-500.0,0.00013996,2]
[419988871,1775587844858,-1000.0,0.00014087,2]
[419988872,1775587844868,-165.7371,0.000141,2]
[419988874,1775587844878,-180.87,0.00014121,2]
[419988876,1775587844887,-2964.7618963,0.00014121,2]
[419988878,1775587844896,-506.0,0.00014145,2]
[419988881,1775587844906,-5533.0,0.000142,3]
[419988883,1775587844916,-150.0,0.00014247,2]
[419988884,1775587844926,-1000.0,0.00014247,2]
[419988887,1775587844936,-500.0,0.00014247,2]
[419988889,1775587844945,-500.0,0.00014247,2]
[419988891,1775587844955,-500.0,0.00014247,2]
[419988893,1775587844964,-500.0,0.00014247,2]
[419988895,1775587844974,-500.0,0.00014247,2]
[419988897,1775587844983,-500.0,0.00014247,2]
[419988899,1775587844993,-500.0,0.00014247,2]
[419988901,1775587845003,-500.0,0.00014247,2]
[419988903,1775587845013,-1000.0,0.00014247,2]
[419988905,1775587845023,-1001.62175176,0.00014247,2]
[419988907,1775587845033,-500.78094914,0.00014247,2]
[419988909,1775587845042,-500.0,0.0001427,2]
[419988911,1775587845052,-171.4,0.00014275,2]
[419988913,1775587845061,-492.28290094,0.000143,2]
[419988915,1775587845071,-150.0,0.000144,2]
[419988917,1775587845081,-150.0,0.000144,2]
[419988919,1775587845090,-150.0,0.000144,2]
[419988921,1775587845099,-150.0,0.000144,2]
[419988923,1775587845109,-150.0,0.000144,2]
[419988925,1775587845119,-150.0,0.000144,2]
[419988927,1775587845129,-150.0,0.000144,2]
[419988928,1775587845139,-150.0,0.000144,2]
[419988931,1775587845149,-150.0,0.000144,2]
[419988933,1775587845159,-150.0,0.000144,2]
[419988935,1775587845169,-150.0,0.000144,2]
[419988937,1775587845178,-150.0,0.000144,2]
[419988939,1775587845189,-150.0,0.000144,2]
[419988941,1775587845199,-150.0,0.000144,2]
[419988943,1775587845209,-2000.0,0.00014416,2]
[419988945,1775587845220,-2000.0,0.00014416,2]
[419988947,1775587845230,-2000.0,0.00014416,2]
[419988949,1775587845241,-2000.0,0.00014416,2]
[419988951,1775587845250,-2000.0,0.00014416,2]
[419988953,1775587845260,-2000.0,0.00014416,2]
[419988954,1775587845270,-1852.42,0.00014462,2]
[419988956,1775587845280,-2964.7618963,0.00014477,2]
[419988958,1775587845290,-1564.01988462,0.00014485,2]
[419988960,1775587845300,-500.0,0.00014544,2]
[419988963,1775587845311,-2000.0,0.00014547,2]
[419988965,1775587845321,-150.0,0.00014578,2]
[419988967,1775587845333,-150.0,0.00014578,2]
[419988969,1775587845343,-500.0,0.000146,2]
[419988971,1775587845353,-500.0,0.000146,2]
[419988973,1775587845363,-500.0,0.000146,2]
[419988975,1775587845373,-500.0,0.000146,2]
[419988977,1775587845383,-175.0,0.00014601,2]
[419988979,1775587845392,-150.0,0.00014629,2]
[419988981,1775587845402,-150.0,0.0001472,2]
[419988983,1775587845413,-150.0,0.0001472,2]
[419988985,1775587845424,-150.0,0.00014756,2]
[419988987,1775587845434,-150.0,0.00014756,2]
[419988989,1775587845444,-500.70648413,0.00014795,2]
[419988991,1775587845454,-1500.0,0.00014795,2]
[419988993,1775587845465,-150.0,0.000148,2]
[419988995,1775587845475,-150.0,0.000148,2]
[419988997,1775587845484,-150.0,0.000148,2]
[419988999,1775587845495,-2964.7618963,0.00014833,2]
[419989001,1775587845507,-3284.3,0.00014853,2]
[419989003,1775587845517,-150.0,0.00014857,2]
[419989005,1775587845529,-154.56878893,0.00014886,2]
[419989007,1775587845540,-160.0,0.00014896,7]
[419989010,1775587845550,-1791.069075,0.00014896,7]
[419989012,1775587845561,-3422.138151,0.00014896,7]
[419989014,1775587845571,-160.0,0.00014896,7]
[419989016,1775587845581,-294.86929,0.00014896,7]
[419989018,1775587845591,-429.738581,0.00014896,7]
[419989020,1775587845601,-160.0,0.00014896,2]
[419989022,1775587845611,-514.004309,0.00014896,2]
[419989024,1775587845622,-868.008618,0.00014896,2]
[419989025,1775587845633,-160.0,0.00014896,7]
[419989028,1775587845643,-742.714162,0.00014896,7]
[419989030,1775587845654,-1325.428325,0.00014896,7]
[419989032,1775587845664,-160.0,0.00014896,7]
[419989034,1775587845674,-898.601104,0.00014896,7]
[419989036,1775587845684,-1637.202209,0.00014896,7]
[419989038,1775587845694,-150.0,0.00014933,2]
[419989040,1775587845704,-150.0,0.00014933,2]
[419989042,1775587845714,-250.0,0.00014942,2]
[419989044,1775587845725,-513.22099072,0.00014964,2]
[419989046,1775587845736,-1000.0,0.00014964,2]
[419989048,1775587845747,-2500.0,0.00014964,2]
[419989050,1775587845757,-1000.0,0.00014964,2]
[419989052,1775587845767,-1500.0,0.00014964,2]
[419989054,1775587845777,-508.06532933,0.00014964,2]
[419989056,1775587845787,-266.0,0.00015,2]
[419989058,1775587845798,-942.0,0.00015,2]
[419989060,1775587845808,-433.0,0.00015005,2]
[419989062,1775587845818,-150.0,0.0001504,2]
[419989065,1775587845827,-150.0,0.0001504,2]
[419989069,1775587845838,-210.28,0.00015068,2]
[419989072,1775587845848,-150.0,0.00015086,2]
[419989075,1775587845858,-150.0,0.00015111,2]
[419989078,1775587845868,-150.0,0.00015111,2]
[419989080,1775587845878,-390.18363578,0.00015133,2]
[419989082,1775587845888,-2964.7618963,0.00015188,2]
[419989084,1775587845898,-506.0,0.00015191,3]
[419989086,1775587845908,-101382.65,0.000152,2]
[419989088,1775587845919,-150.0,0.000152,2]
[419989091,1775587845930,-150.0,0.000152,2]
[419989093,1775587845941,-150.0,0.000152,2]
[419989096,1775587845951,-150.0,0.000152,2]
[419989097,1775587845962,-10000.0,0.00015205,2]
[419989099,1775587845972,-155.26329613,0.00015207,2]
[419989101,1775587845981,-2351.0,0.00015241,2]
[419989103,1775587845991,-985.75,0.00015269,2]
[419989105,1775587846001,-150.0,0.00015289,2]
[419989108,1775587846011,-150.0,0.00015289,2]
[419989110,1775587846021,-171.4,0.00015295,2]
[419989112,1775587846031,-184.90213948,0.0001531,2]
[419989114,1775587846043,-150.0,0.00015314,2]
[419989116,1775587846053,-2000.0,0.00015342,2]
[419989118,1775587846062,-150.0,0.0001536,2]
[419989120,1775587846072,-150.0,0.0001536,2]
[419989122,1775587846083,-183.1254,0.000154,2]
[419989124,1775587846092,-150.0,0.00015467,2]
[419989126,1775587846102,-150.0,0.00015467,2]
[419989128,1775587846112,-611.15,0.00015471,2]
[419989130,1775587846122,-6242.75,0.00015471,2]
[419989132,1775587846132,-745.79,0.00015471,2]
[419989134,1775587846142,-500.0,0.00015499,2]
[419989136,1775587846152,-500.0,0.00015499,2]
[419989138,1775587846162,-500.0,0.00015499,2]
[419989140,1775587846172,-500.0,0.00015499,2]
[419989143,1775587846182,-922.22,0.00015499,2]
[419989144,1775587846192,-500.0,0.00015499,2]
[419989146,1775587846201,-500.0,0.00015499,2]
[419989148,1775587846211,-500.0,0.00015499,2]
[419989151,1775587846222,-500.0,0.00015499,2]
[419989153,1775587846231,-500.0,0.00015499,2]
[419989155,1775587846241,-500.0,0.00015499,2]
[419989157,1775587846251,-500.0,0.00015499,2]
[419989159,1775587846261,-500.0,0.00015499,2]
[419989161,1775587846270,-500.0,0.00015499,2]
[419989163,1775587846279,-500.0,0.00015499,2]
[419989165,1775587846289,-500.0,0.00015499,2]
[419989167,1775587846299,-1000.0,0.00015511,2]
[419989169,1775587846309,-1000.0,0.00015511,2]
[419989171,1775587846319,-1000.0,0.00015511,2]
[419989173,1775587846330,-1000.0,0.00015511,2]
[419989175,1775587846340,-1000.0,0.00015511,2]
[419989177,1775587846351,-740.988,0.00015511,2]
[419989179,1775587846362,-3000.0,0.00015512,2]
[419989181,1775587846371,-150.0,0.00015543,2]
[419989183,1775587846381,-985.75,0.00015543,2]
[419989185,1775587846390,-2964.7618963,0.00015544,2]
[419989187,1775587846400,-180.19463014,0.00015556,2]
[419989189,1775587846410,-785.92,0.00015597,2]
[419989191,1775587846421,-150.0,0.000156,2]
[419989193,1775587846430,-150.0,0.000156,2]
[419989195,1775587846440,-150.0,0.000156,2]
[419989197,1775587846450,-17400.0,0.000156,5]
[419989199,1775587846460,-2442.366921,0.00015641,7]
[419989201,1775587846470,-603.141731,0.00015641,7]
[419989203,1775587846481,-700.914966,0.00015641,2]
[419989205,1775587846491,-1012.79204,0.00015641,7]
[419989207,1775587846501,-1225.365142,0.00015641,7]
[419989209,1775587846511,-150.0,0.00015644,2]
[419989211,1775587846521,-150.0,0.00015644,2]
[419989213,1775587846531,-293.86819805,0.00015653,2]
[419989215,1775587846541,-431.61076642,0.00015653,2]
[419989217,1775587846552,-2812.0,0.0001568,2]
[419989219,1775587846562,-150.0,0.0001568,2]
[419989221,1775587846571,-150.0,0.0001568,2]
[419989223,1775587846581,-1043.08406831,0.0001568,2]
[419989225,1775587846591,-1014.27101283,0.0001568,2]
[419989226,1775587846601,-1001.25585459,0.0001568,2]
[419989228,1775587846611,-1143.92727243,0.0001568,2]
[419989230,1775587846620,-1005.56474822,0.0001568,2]
[419989232,1775587846630,-1110.31447382,0.0001568,2]
[419989234,1775587846640,-1179.67329259,0.0001568,2]
[419989236,1775587846651,-500.0,0.00015699,2]
[419989238,1775587846661,-21800.0,0.000157,5]
[419989240,1775587846671,-150.0,0.00015771,2]
[419989242,1775587846680,-4300.0,0.000158,5]
[419989244,1775587846691,-152.0,0.00015816,2]
[419989246,1775587846701,-985.75,0.00015817,2]
[419989248,1775587846712,-150.0,0.00015822,2]
[419989250,1775587846723,-150.0,0.00015822,2]
[419989252,1775587846733,-150.0,0.00015838,2]
[419989254,1775587846743,-10000.0,0.0001584,2]
[419989256,1775587846753,-169.1901,0.0001584,2]
[419989258,1775587846762,-169.1901,0.0001585,2]
[419989260,1775587846772,-169.1901,0.0001586,2]
[419989262,1775587846782,-169.1901,0.0001587,2]
[419989264,1775587846791,-785.92,0.00015871,2]
[419989267,1775587846801,-500.0,0.00015873,2]
[419989269,1775587846811,-169.1901,0.0001588,2]
[419989271,1775587846821,-169.1901,0.0001589,2]
[419989273,1775587846830,-2000.0,0.0001589,2]
[419989275,1775587846840,-1500.0,0.0001589,2]
[419989277,1775587846850,-8659.8002,0.00015899,2]
[419989279,1775587846859,-6096.0,0.000159,2]
[419989281,1775587846869,-2964.7618963,0.000159,2]
[419989283,1775587846878,-492.28290094,0.000159,2]
[419989285,1775587846888,-4300.0,0.000159,5]
[419989287,1775587846898,-233.57251441,0.000159,2]
[419989289,1775587846908,-1853.25106067,0.000159,2]
[419989291,1775587846917,-332.93807702,0.000159,2]
[419989293,1775587846927,-4549.38317389,0.000159,2]
[419989295,1775587846937,-10652.71831275,0.000159,2]
[419989297,1775587846946,-2000.0,0.000159,2]
[419989299,1775587846957,-439.32779267,0.00015904,2]
[419989301,1775587846966,-250.0,0.00015934,2]
[419989303,1775587846976,-23010.3303587,0.00015959,2]
[419989305,1775587846986,-5000.0,0.0001596,2]
[419989307,1775587846996,-500.0,0.00015973,2]
[419989309,1775587847005,-500.0,0.00015973,2]
[419989311,1775587847015,-500.0,0.00015973,2]
[419989313,1775587847025,-501.19620744,0.00015973,2]
[419989315,1775587847035,-500.0,0.00015974,2]
[419989317,1775587847045,-500.0,0.00015974,2]
[419989319,1775587847056,-922.22,0.00015974,2]
[419989321,1775587847066,-500.0,0.00015974,2]
[419989323,1775587847076,-500.0,0.00015974,2]
[419989325,1775587847085,-500.0,0.00015974,2]
[419989327,1775587847094,-500.0,0.00015974,2]
[419989329,1775587847104,-500.0,0.00015974,2]
[419989331,1775587847114,-500.0,0.00015974,2]
[419989333,1775587847123,-500.0,0.00015974,2]
[419989335,1775587847132,-500.0,0.00015974,2]
[419989337,1775587847142,-154.56878893,0.0001599,2]
[419989339,1775587847153,-151.0,0.00015997,2]
[419989341,1775587847164,-151.0,0.00015997,2]
[419989343,1775587847175,-500.0,0.00015999,2]
[419989345,1775587847186,-500.0,0.00015999,2]
[419989347,1775587847196,-500.0,0.00015999,2]
[419989349,1775587847207,-500.0,0.00015999,2]
[419989351,1775587847218,-500.0,0.00015999,2]
[419989353,1775587847229,-500.0,0.00015999,2]
[419989355,1775587847239,-500.0,0.00015999,2]
[419989357,1775587847249,-500.0,0.00015999,2]
[419989359,1775587847260,-500.0,0.00015999,2]
[419989361,1775587847270,-500.0,0.00015999,2]
[419989363,1775587847280,-500.0,0.00015999,2]
[419989365,1775587847290,-500.0,0.00015999,2]
[419989367,1775587847300,-500.0,0.00015999,2]
[419989369,1775587847310,-500.0,0.00015999,2]
[419989371,1775587847320,-500.0,0.00015999,2]
[419989374,1775587847330,-500.0,0.00015999,2]
[419989376,1775587847340,-500.0,0.00015999,2]
[419989378,1775587847351,-500.0,0.00015999,2]
[419989380,1775587847362,-500.0,0.00015999,2]
[419989382,1775587847372,-500.0,0.00015999,2]
[419989384,1775587847382,-500.0,0.00015999,2]
[419989386,1775587847392,-500.0,0.00015999,2]
[419989388,1775587847403,-500.0,0.00015999,2]
[419989390,1775587847413,-500.0,0.00015999,2]
[419989392,1775587847423,-500.0,0.00015999,2]
[419989394,1775587847433,-500.0,0.00015999,2]
[419989396,1775587847443,-1117.02022931,0.00015999,5]
[419989398,1775587847453,-1117.02022931,0.00015999,5]
[419989401,1775587847465,-1117.02022933,0.00015999,5]
[419989403,1775587847475,-500.0,0.00015999,2]
[419989405,1775587847484,-500.0,0.00015999,2]
[419989407,1775587847494,-922.22,0.00015999,2]
[419989409,1775587847507,-922.22,0.00015999,2]
[419989411,1775587847517,-922.22,0.00015999,2]
[419989413,1775587847526,-922.22,0.00015999,2]
[419989415,1775587847536,-922.22,0.00015999,2]
[419989417,1775587847546,-922.22,0.00015999,2]
[419989419,1775587847556,-922.22,0.00015999,2]
[419989421,1775587847566,-922.22,0.00015999,2]
[419989423,1775587847576,-922.22,0.00015999,2]
[419989425,1775587847586,-922.22,0.00015999,2]
[419989427,1775587847596,-922.22,0.00015999,2]
[419989429,1775587847606,-922.22,0.00015999,2]
[419989431,1775587847616,-922.22,0.00015999,2]
[419989433,1775587847627,-922.22,0.00015999,2]
[419989467,1775587847953,-922.22,0.00015999,2]
[419989469,1775587847966,-922.22,0.00015999,2]
[419989471,1775587847976,-922.22,0.00015999,2]
[419989473,1775587847987,-922.22,0.00015999,2]
[419989475,1775587847996,-922.22,0.00015999,2]
[419989477,1775587848006,-922.22,0.00015999,2]
[419989479,1775587848016,-922.22,0.00015999,2]
[419989481,1775587848026,-922.30053324,0.00015999,2]
[419989483,1775587848036,-500.0,0.00015999,2]
[419989485,1775587848047,-500.0,0.00015999,2]
[419989487,1775587848057,-500.0,0.00015999,2]
[419989489,1775587848067,-500.0,0.00015999,2]
[419989491,1775587848078,-500.0,0.00015999,2]
[419989493,1775587848089,-500.0,0.00015999,2]
[419989495,1775587848099,-500.0,0.00015999,2]
[419989497,1775587848110,-500.0,0.00015999,2]
[419989499,1775587848120,-500.0,0.00015999,2]
[419989502,1775587848131,-500.0,0.00015999,2]
[419989503,1775587848142,-500.0,0.00015999,2]
[419989506,1775587848152,-500.0,0.00015999,2]
[419989508,1775587848162,-500.0,0.00015999,2]
[419989510,1775587848172,-500.0,0.00015999,2]
[419989512,1775587848183,-500.0,0.00015999,2]
[419989514,1775587848192,-500.0,0.00015999,2]
[419989516,1775587848203,-500.0,0.00015999,2]
[419989518,1775587848213,-500.0,0.00015999,2]
[419989520,1775587848224,-274.44397972,0.00015999,2]
[419989522,1775587848235,-500.0,0.00015999,2]
[419989524,1775587848246,-500.0,0.00015999,2]
[419989526,1775587848256,-592.36573731,0.00015999,2]
[419989528,1775587848267,-500.0,0.00015999,2]
[419989530,1775587848277,-500.0,0.00015999,2]
[419989532,1775587848288,-500.0,0.00015999,2]
[419989534,1775587848303,-500.0,0.00015999,2]
[419989536,1775587848313,-481.06713155,0.00015999,2]
[419989538,1775587848324,-500.0,0.00015999,2]
[419989540,1775587848334,-500.0,0.00015999,2]
[419989542,1775587848344,-500.0,0.00015999,2]
[419989544,1775587848354,-500.0,0.00015999,2]
[419989546,1775587848365,-500.0,0.00015999,2]
[419989548,1775587848375,-500.0,0.00015999,2]
[419989551,1775587848386,-500.0,0.00015999,2]
[419989553,1775587848396,-500.0,0.00015999,2]
[419989555,1775587848407,-500.0,0.00015999,2]
[419989557,1775587848418,-500.0,0.00015999,2]
[419989559,1775587848429,-390.77484076,0.00015999,2]
[419989561,1775587848440,-500.0,0.00015999,2]
[419989563,1775587848450,-500.0,0.00015999,2]
[419989565,1775587848460,-396.18600857,0.00015999,2]
[419989568,1775587848471,-500.0,0.00015999,2]
[419989570,1775587848481,-500.0,0.00015999,2]
[419989572,1775587848491,-500.0,0.00015999,2]
[419989574,1775587848501,-500.0,0.00015999,2]
[419989576,1775587848511,-500.0,0.00015999,2]
[419989578,1775587848521,-420.19790691,0.00015999,2]
[419989580,1775587848532,-500.0,0.00015999,2]
[419989582,1775587848541,-500.0,0.00015999,2]
[419989584,1775587848551,-500.0,0.00015999,2]
[419989586,1775587848561,-500.0,0.00015999,2]
[419989588,1775587848570,-500.0,0.00015999,2]
[419989590,1775587848580,-500.0,0.00015999,2]
[419989592,1775587848590,-500.0,0.00015999,2]
[419989594,1775587848599,-500.0,0.00015999,2]
[419989596,1775587848609,-500.0,0.00015999,2]
[419989598,1775587848618,-500.0,0.00015999,2]
[419989600,1775587848628,-500.0,0.00015999,2]
[419989602,1775587848638,-500.0,0.00015999,2]
[419989604,1775587848647,-500.0,0.00015999,2]
[419989606,1775587848657,-500.0,0.00015999,2]
[419989608,1775587848667,-500.0,0.00015999,2]
[419989610,1775587848677,-500.0,0.00015999,2]
[419989612,1775587848687,-500.0,0.00015999,2]
[419989614,1775587848696,-626.1298975,0.00015999,2]
[419989616,1775587848707,-500.0,0.00015999,2]
[419989618,1775587848717,-500.0,0.00015999,2]
[419989620,1775587848728,-500.0,0.00015999,2]
[419989622,1775587848738,-500.0,0.00015999,2]
[419989624,1775587848748,-500.0,0.00015999,2]
[419989626,1775587848758,-500.0,0.00015999,2]
[419989628,1775587848769,-500.0,0.00015999,2]
[419989630,1775587848779,-500.0,0.00015999,2]
[419989632,1775587848789,-500.0,0.00015999,2]
[419989634,1775587848800,-500.0,0.00015999,2]
[419989636,1775587848810,-500.0,0.00015999,2]
[419989638,1775587848820,-500.0,0.00015999,2]
[419989640,1775587848830,-500.0,0.00015999,2]
[419989642,1775587848840,-500.0,0.00015999,2]
[419989644,1775587848850,-500.0,0.00015999,2]
[419989646,1775587848860,-500.0,0.00015999,2]
[419989648,1775587848870,-500.0,0.00015999,2]
[419989650,1775587848879,-500.0,0.00015999,2]
[419989652,1775587848890,-500.0,0.00015999,2]
[419989654,1775587848900,-648.21214758,0.00015999,2]
[419989656,1775587848911,-500.0,0.00015999,2]
[419989658,1775587848921,-500.0,0.00015999,2]
[419989660,1775587848932,-500.0,0.00015999,2]
[419989662,1775587848942,-500.0,0.00015999,2]
[419989664,1775587848952,-500.0,0.00015999,2]
[419989666,1775587848962,-500.0,0.00015999,2]
[419989668,1775587848972,-500.0,0.00015999,2]
[419989670,1775587848982,-500.0,0.00015999,2]
[419989672,1775587848992,-500.0,0.00015999,2]
[419989674,1775587849002,-500.0,0.00015999,2]
[419989676,1775587849012,-500.0,0.00015999,2]
[419989678,1775587849022,-500.0,0.00015999,2]
[419989680,1775587849032,-500.0,0.00015999,2]
[419989682,1775587849042,-500.0,0.00015999,2]
[419989684,1775587849053,-500.0,0.00015999,2]
[419989686,1775587849063,-500.0,0.00015999,2]
[419989688,1775587849073,-287.49918003,0.00015999,2]
[419989689,1775587849084,-500.0,0.00015999,2]
[419989690,1775587849094,-500.0,0.00015999,2]
[419989691,1775587849104,-500.0,0.00015999,2]
[419989692,1775587849114,-517.21055633,0.00015999,2]
[419989693,1775587849124,-500.0,0.00015999,2]
[419989694,1775587849135,-500.0,0.00015999,2]
[419989695,1775587849145,-500.0,0.00015999,2]
[419989696,1775587849154,-500.0,0.00015999,2]
[419989697,1775587849164,-500.0,0.00015999,2]
[419989698,1775587849174,-500.0,0.00015999,2]
[419989699,1775587849184,-500.0,0.00015999,2]
[419989700,1775587849194,-500.0,0.00015999,2]
[419989701,1775587849203,-500.0,0.00015999,2]
[419989703,1775587849213,-180.63471025,0.00015999,2]
[419989705,1775587849223,-193.96292451,0.00015999,2]
[419989707,1775587849233,-183.96136344,0.00016,2]
[419989709,1775587849243,-224.88397604,0.00016,2]
[419989711,1775587849253,-245.0843554,0.00016,2]
[419989713,1775587849263,-152.61372689,0.00016,2]
[419989715,1775587849274,-151.22967101,0.00016,2]
[419989718,1775587849296,-272.54305017,0.00016,2]
[419989720,1775587849306,-150.00000001,0.00016,2]
[419989722,1775587849317,-181.05044788,0.00016,2]
[419989724,1775587849327,-151.75828689,0.00016,2]
[419989726,1775587849337,-292.77980276,0.00016,2]
[419989728,1775587849347,-2374416.84361418,0.00016,2]
[419989731,1775587849373,-550.0,0.00016,2]
[419989742,1775587849468,-332.14924672,0.00016,2]
[419989744,1775587849482,-202948.73750888,0.00016,2]
[419989765,1775587849680,-13272.48760588,0.00016,2]
[419989768,1775587849707,-301508.09556352,0.00016,2]
[419989770,1775587849720,-604.0,0.00016,2]
[419989775,1775587849763,-5326.51044459,0.000146,5]
[419989782,1775587849830,-206.48955541,0.000146,5]
[419989785,1775587849841,-12498.67697833,0.00016,2]
[419989828,1775587850281,-279.026,0.00013103,2]
[419989851,1775587850759,-1143.974,0.00013103,2]
[419989852,1775587850770,-1006.0,0.00013129,2]
[419989853,1775587850780,-4394.95574802,0.00013312,2]
[419989854,1775587850793,-1371.86959173,0.00013312,2]
[419989855,1775587850818,-764.132,0.00013312,2]
[419989856,1775587850871,-2565.99773443,0.00013312,2]
[419989857,1775587850882,-190.09,0.00013699,2]
[419989858,1775587850893,-190.09,0.00014384,2]
[419989859,1775587850903,-190.09,0.00015068,2]
[419989860,1775587850913,-529.0,0.000152,2]
[419989861,1775587850923,-896.0,0.000152,2]
[419989862,1775587850932,-104133.73226307,0.00016,2]
[419989868,1775587985989,150.15,6.967e-05,2]
[419989869,1775587986206,150.15,7.741e-05,2]
[419989870,1775587986415,150.15,8.515e-05,2]
[419989871,1775587986627,150.15,9.289e-05,2]
[419989872,1775587986839,150.15,0.00010063,2]
[419989873,1775587987073,150.15,0.00010837,2]
[419989874,1775587987303,150.15,0.00011611,2]
[419989875,1775587988020,150.15,0.00012385,2]
[419989876,1775588013494,267.95794601,0.00012497,2]
[419989877,1775588096575,9732.05205399,0.00012497,2]
[419989878,1775588096599,920.66625876,0.00012497,2]
[419989879,1775588220746,2964.76189634,0.00012497,2]
[419989880,1775588220786,6114.5818449,0.00012497,2]
[419989881,1775588220810,3988.40702995,0.00012497,2]
[419989882,1775588224489,2500.0,0.00012497,2]